bitfinex-derivatives/quotes_ETHF0:USTF0_20250702
["timestamp","ask_amount","ask_price","bid_price","bid_amount"]
[1751477104347,13.151,2588.8,2587.9,10.65357628]
[1751477104641,1.93061,2588.5,2587.9,3.46]
[1751477104843,0.77239,2588.0,2587.9,3.46]
[1751477105143,0.77248,2587.7,2587.6,5.39]
[1751477105339,5.77248,2587.7,2587.6,0.21594]
[1751477105741,5.0,2587.7,2586.2,1.48874016]
[1751477106044,1.9316,2587.2,2586.2,3.26]
[1751477106345,0.77284,2586.5,2586.2,3.26]
[1751477106642,0.7729,2586.3,2586.2,3.26]
[1751477106944,55.8259,2586.3,2586.2,3.26]
[1751477107145,64.2914,2586.3,2586.2,3.26]
[1751477107343,64.2914,2586.3,2585.9,4.9]
[1751477107344,0.77299,2586.0,2585.9,4.9]
[1751477107545,56.43499,2586.0,2585.9,3.42]
[1751477107845,61.43499,2586.0,2585.9,3.42]
[1751477108637,0.77308,2585.7,2585.6,4.69]
[1751477108844,42.63808,2585.7,2585.6,3.59]
[1751477109142,47.63808,2585.7,2585.6,3.59]
[1751477109749,1.93278,2585.6,2584.6,1.48695154]
[1751477110045,0.77338,2584.7,2584.6,2.68705322]
[1751477110244,111.40138,2584.7,2584.6,2.68705322]
[1751477110441,116.40138,2584.7,2584.6,2.68705322]
[1751477110644,116.40138,2584.7,2584.3,0.16]
[1751477110645,126.28157628,2584.7,2584.3,0.16]
[1751477110848,0.77347,2584.4,2584.3,3.19]
[1751477111048,0.77347,2584.4,2584.3,3.1885]
[1751477111246,5.77347,2584.4,2584.3,3.1885]
[1751477111446,0.77356,2584.1,2584.0,4.62]
[1751477111646,0.77365,2583.8,2583.7,4.43]
[1751477111847,13.92965,2583.8,2583.7,3.29]
[1751477112042,18.92965,2583.8,2583.7,3.29]
[1751477112246,18.156,2583.8,2582.0,0.77418]
[1751477112444,0.77371,2583.6,2582.4,6.4758]
[1751477112649,3.3241,2583.5,2582.8,3.71856494]
[1751477112846,0.77382,2583.3,2582.8,7.05856494]
[1751477113051,13.002,2583.2,2582.8,3.34]
[1751477113749,13.77582,2583.2,2582.8,3.34]
[1751477114048,16.3261,2583.2,2582.8,3.34]
[1751477114252,0.77391,2582.9,2582.8,3.34]
[1751477114550,0.77413,2582.2,2580.7,10.65357628]
[1751477114751,110.461,2582.1,2581.4,3.4238]
[1751477114942,13.78019,2582.0,2581.4,6.4938]
[1751477115255,13.006,2582.0,2581.4,6.4938]
[1751477115450,0.77422,2581.9,2581.4,3.07]
[1751477115646,0.7743,2581.6,2581.4,3.07]
[1751477115843,45.95963,2581.5,2581.4,3.07]
[1751477116246,50.95963,2581.5,2581.4,3.07]
[1751477116446,45.95963,2581.5,2581.4,3.07]
[1751477116646,54.74,2581.5,2581.4,3.07]
[1751477116846,55.51433,2581.5,2581.4,3.07]
[1751477117044,60.51433,2581.5,2581.4,3.07]
[1751477117445,46.57433,2581.5,2581.4,3.07]
[1751477117648,40.8,2581.5,2581.4,3.07]
[1751477117850,95.483,2581.5,2581.4,3.07]
[1751477118146,40.8,2581.5,2581.4,3.07]
[1751477118353,95.478,2581.5,2581.4,3.07]
[1751477118556,101.25232,2581.5,2581.4,3.07]
[1751477119346,41.57432,2581.5,2581.4,3.07]
[1751477119543,96.25932,2581.5,2581.4,3.07]
[1751477119946,95.485,2581.5,2581.4,3.07]
[1751477120354,96.24332,2581.5,2581.4,3.07]
[1751477120556,53.811,2581.5,2581.4,3.07]
[1751477120858,96.21032,2581.5,2581.4,3.07]
[1751477121051,96.20632,2581.5,2581.4,3.07]
[1751477121248,13.015,2582.9,2581.4,8.07]
[1751477121454,54.816,2582.8,2581.5,6.8154]
[1751477121652,54.816,2582.8,2581.5,13.0244]
[1751477121653,58.232,2582.8,2581.5,13.0244]
[1751477122146,40.8,2582.7,2581.5,13.0244]
[1751477122349,0.77404,2582.5,2581.6,11.42784628]
[1751477122553,1.93513,2582.4,2581.6,3.58]
[1751477122755,0.77423,2581.8,2581.6,3.58]
[1751477122956,41.794,2581.7,2581.6,3.58]
[1751477123651,42.56826,2581.7,2581.6,3.58]
[1751477124056,58.85656,2581.7,2581.6,3.58]
[1751477124452,63.85656,2581.7,2581.6,3.58]
[1751477124653,63.85656,2581.7,2581.6,2.76338999]
[1751477124857,0.77438,2581.3,2581.2,0.00581001]
[1751477125149,98.25738,2581.3,2581.2,2.88581001]
[1751477125756,103.25738,2581.3,2581.2,2.88581001]
[1751477126255,103.25738,2581.3,2581.2,2.01744001]
[1751477126653,0.77447,2581.0,2580.9,0.26]
[1751477126850,96.27747,2581.0,2580.9,3.56]
[1751477127055,101.27747,2581.0,2580.9,3.56]
[1751477127356,104.65667,2581.0,2580.9,3.56]
[1751477127860,0.77473,2580.2,2580.0,3.4228]
[1751477128056,55.43074,2580.1,2580.0,3.0]
[1751477128756,54.656,2580.1,2580.0,3.0]
[1751477128959,54.624,2580.1,2580.0,3.0]
[1751477129253,54.624,2580.1,2580.0,8.0]
[1751477129451,54.609,2580.1,2580.0,8.0]
[1751477129758,55.38374,2580.1,2580.0,3.0]
[1751477129957,60.38374,2580.1,2580.0,3.0]
[1751477130264,60.38374,2580.1,2580.0,1.83686]
[1751477130449,3.87394,2580.0,2578.7,6.7063]
[1751477130649,0.77506,2579.1,2578.7,10.1763]
[1751477130854,54.613,2579.0,2578.8,3.3811]
[1751477131053,54.604,2578.9,2578.8,6.7811]
[1751477133354,55.3791,2578.9,2578.8,6.7811]
[1751477134057,55.3791,2578.9,2578.8,3.4]
[1751477134259,55.3791,2578.9,2578.8,2.4]
[1751477135254,55.783,2579.2,2578.8,2.4]
[1751477135455,13.027,2579.0,2578.8,5.6819]
[1751477135650,55.783,2579.2,2578.8,5.6819]
[1751477135858,54.432,2579.1,2578.8,5.6819]
[1751477136362,0.77508,2579.0,2578.8,5.6819]
[1751477136657,41.391,2579.1,2578.8,5.6819]
[1751477137663,0.7751,2578.9,2578.8,5.6819]
[1751477137860,55.1911,2578.9,2578.8,5.6819]
[1751477138260,54.416,2578.9,2578.8,5.6819]
[1751477138459,13.03,2579.2,2578.8,10.6819]
[1751477138659,41.347,2579.1,2578.8,5.6819]
[1751477139160,42.12205,2579.1,2578.8,5.6819]
[1751477139362,41.347,2579.1,2578.8,5.6819]
[1751477139658,42.12205,2579.1,2578.8,5.6819]
[1751477140058,13.031,2579.1,2578.8,5.6819]
[1751477140363,13.031,2579.5,2578.8,10.6819]
[1751477140563,42.04297,2579.4,2578.9,0.77508]
[1751477140860,42.04297,2579.4,2579.0,3.5162]
[1751477141062,41.268,2579.4,2579.0,7.75127]
[1751477141265,41.268,2579.3,2579.0,12.75126]
[1751477141654,41.268,2579.3,2579.0,11.9762]
[1751477141859,41.268,2579.3,2579.1,0.77501]
[1751477142059,1.93676,2580.3,2579.2,3.4043]
[1751477142260,0.77493,2579.5,2579.2,6.9943]
[1751477142462,0.77495,2579.4,2579.3,3.4043]
[1751477142661,0.77495,2579.4,2579.3,6.9643]
[1751477142961,0.77495,2579.4,2579.3,3.56]
[1751477143762,41.95195,2579.4,2579.3,3.56]
[1751477143963,41.177,2579.4,2579.3,3.56]
[1751477144363,41.95195,2579.4,2579.3,3.56]
[1751477146366,46.95195,2579.4,2579.3,3.56]
[1751477147166,41.95195,2579.4,2579.3,3.56]
[1751477147361,41.177,2579.4,2579.3,3.56]
[1751477147563,3.5187,2579.5,2579.3,3.56]
[1751477147768,12.821,2579.8,2579.3,3.56]
[1751477147965,0.77491,2579.6,2579.3,3.56]
[1751477148269,44.275,2579.7,2579.3,3.56]
[1751477148469,41.052,2579.7,2579.3,3.56]
[1751477148668,0.77484,2579.8,2579.3,3.56]
[1751477148865,41.176,2579.7,2579.4,3.4682]
[1751477149067,55.811,2580.0,2579.4,6.5882]
[1751477149268,0.00581001,2579.8,2579.4,6.5882]
[1751477149970,41.177,2579.7,2579.5,0.7749]
[1751477150170,41.177,2579.7,2579.6,3.4682]
[1751477150369,41.177,2579.7,2579.6,6.9582]
[1751477150570,41.177,2579.7,2579.6,11.9582]
[1751477150774,41.177,2579.7,2579.6,6.9582]
[1751477150963,41.177,2579.7,2579.6,7.73309]
[1751477151167,12.82681001,2579.8,2579.6,11.9582]
[1751477151368,53.95781001,2579.8,2579.7,3.4106]
[1751477151562,53.95781001,2579.8,2579.7,6.4006]
[1751477151771,53.95781001,2579.8,2579.7,12.17546]
[1751477151970,53.95781001,2579.8,2579.7,11.4006]
[1751477152274,53.95781001,2579.8,2579.7,2.99]
[1751477152667,0.00581001,2579.8,2579.7,7.99]
[1751477153066,0.00581001,2579.8,2579.7,2.99]
[1751477153666,0.78064001,2579.8,2579.7,2.99]
[1751477154466,0.00581001,2579.8,2579.7,2.99]
[1751477155062,41.17181001,2579.8,2579.7,2.99]
[1751477156272,41.12481001,2579.8,2579.7,2.99]
[1751477156673,0.00581001,2579.8,2579.7,2.99]
[1751477156967,0.00581001,2579.8,2579.7,8.76486]
[1751477156968,41.11781001,2579.8,2579.7,8.76486]
[1751477157374,41.11781001,2579.8,2579.7,7.99]
[1751477157873,0.00581001,2579.8,2579.7,8.76486]
[1751477158073,0.00581001,2579.8,2579.7,7.99]
[1751477158474,0.00581001,2579.8,2579.7,8.76486]
[1751477158676,41.03381001,2579.8,2579.7,7.99]
[1751477159475,41.03381001,2579.8,2579.7,8.76486]
[1751477159676,41.03381001,2579.8,2579.7,7.99]
[1751477159876,0.00581001,2579.8,2579.7,8.76486]
[1751477160176,0.00581001,2579.8,2579.7,7.99]
[1751477160475,0.78064001,2579.8,2579.7,2.99]
[1751477160970,4.09354001,2579.8,2579.7,2.99]
[1751477161571,0.77492,2579.5,2579.4,4.57]
[1751477161772,0.77492,2579.5,2578.8,1.11924181]
[1751477161773,0.77502,2579.2,2579.1,3.1]
[1751477161977,0.77504,2579.1,2578.8,5.42924181]
[1751477162182,40.893,2579.2,2578.7,6.8243]
[1751477162380,40.893,2579.2,2578.7,9.9243]
[1751477162574,0.77509,2579.0,2578.7,6.4252]
[1751477162769,40.868,2578.9,2578.7,3.1]
[1751477162974,40.868,2578.8,2578.7,3.1]
[1751477163474,43.10169179,2579.7,2578.7,8.1]
[1751477163781,40.854,2579.6,2579.1,0.77502]
[1751477164078,40.854,2579.6,2579.2,4.27521]
[1751477164377,12.82681001,2579.8,2579.3,4.27516]
[1751477164378,40.851,2579.5,2579.3,4.27516]
[1751477164577,40.851,2579.5,2579.4,0.77495]
[1751477164778,40.851,2579.5,2579.4,7.55515]
[1751477164978,40.851,2579.5,2579.4,3.28]
[1751477164979,41.62592,2579.5,2579.4,3.28]
[1751477165381,0.77501,2579.2,2579.1,5.37]
[1751477165582,0.7751,2578.9,2578.8,2.3]
[1751477165877,41.5961,2578.9,2578.8,3.38]
[1751477166277,40.821,2578.9,2578.8,3.38]
[1751477166478,0.77509,2579.0,2578.8,3.38]
[1751477166678,40.785,2578.9,2578.8,3.38]
[1751477166877,41.5601,2578.9,2578.8,3.38]
[1751477167277,12.821,2579.0,2578.8,3.38]
[1751477167474,40.797,2578.9,2578.8,3.38]
[1751477167675,41.5721,2578.9,2578.8,3.38]
[1751477169475,44.8531,2578.9,2578.8,3.38]
[1751477169681,4.0561,2578.9,2578.8,3.38]
[1751477169975,44.7701,2578.9,2578.8,3.38]
[1751477170886,43.995,2578.9,2578.8,3.38]
[1751477171277,44.7701,2578.9,2578.8,3.38]
[1751477172379,12.823,2578.9,2578.8,3.38]
[1751477172582,53.435,2578.9,2578.8,3.38]
[1751477173181,54.2101,2578.9,2578.8,3.38]
[1751477173379,53.435,2578.9,2578.8,3.38]
[1751477173579,55.826,2579.1,2578.8,3.38]
[1751477173782,53.2,2579.0,2578.8,3.38]
[1751477174083,53.2,2579.0,2578.8,4.15513]
[1751477174279,55.826,2579.1,2578.8,4.15513]
[1751477174476,12.623,2579.0,2578.9,0.77509]
[1751477174680,12.623,2579.5,2579.4,0.77495]
[1751477174874,12.623,2579.5,2579.4,4.33495]
[1751477174875,53.156,2579.5,2579.4,4.33495]
[1751477175080,53.161,2579.5,2579.4,3.56]
[1751477175279,53.161,2579.5,2579.4,4.33495]
[1751477175479,53.161,2579.5,2579.4,3.56]
[1751477176283,12.623,2579.5,2579.4,3.56]
[1751477176481,53.89792,2579.5,2579.4,3.56]
[1751477177583,0.77492,2579.5,2579.4,3.56]
[1751477177783,41.22792,2579.5,2579.4,3.56]
[1751477179081,44.80582,2579.5,2579.4,3.56]
[1751477180278,0.00581001,2579.8,2579.4,3.56]
[1751477180478,40.33,2579.7,2579.5,0.77492]
[1751477180680,0.00581001,2579.8,2579.5,6.7343]
[1751477180885,40.33581001,2579.8,2579.7,8.56317521]
[1751477181087,40.33581001,2579.8,2579.7,10.94831521]
[1751477181389,40.33581001,2579.8,2579.7,8.16]
[1751477181587,40.33581001,2579.8,2579.7,3.16]
[1751477181782,41.11064001,2579.8,2579.7,3.16]
[1751477181988,40.33581001,2579.8,2579.7,3.16]
[1751477182189,0.00581001,2579.8,2579.7,8.93486]
[1751477182388,40.33481001,2579.8,2579.7,8.93486]
[1751477183492,40.33481001,2579.8,2579.7,3.16]
[1751477183690,41.10964001,2579.8,2579.7,3.16]
[1751477183987,0.00581001,2579.8,2579.7,3.93486]
[1751477184195,0.00581001,2579.8,2579.7,8.93486]
[1751477184387,0.00581001,2579.8,2579.7,3.93486]
[1751477184692,0.78064001,2579.8,2579.7,3.16]
[1751477185191,52.95681001,2579.8,2579.7,3.16]
[1751477186383,40.33081001,2579.8,2579.7,3.93486]
[1751477186587,0.00581001,2579.8,2579.7,3.16]
[1751477186793,40.33081001,2579.8,2579.7,3.16]
[1751477187396,0.00581001,2579.8,2579.7,3.16]
[1751477187591,40.32981001,2579.8,2579.7,3.93486]
[1751477187796,2.30169179,2581.3,2579.8,1.93707]
[1751477187990,3.06970155,2581.6,2581.0,0.77446]
[1751477187991,12.621,2581.2,2581.0,0.77446]
[1751477188197,12.621,2581.2,2581.1,0.77444]
[1751477188392,52.963,2581.2,2581.1,6.5047]
[1751477188597,53.73741,2581.2,2581.1,2.9]
[1751477188793,12.621,2581.2,2581.1,2.9]
[1751477189097,52.944,2581.2,2581.1,2.9]
[1751477189300,53.71841,2581.2,2581.1,2.9]
[1751477189497,52.944,2581.2,2581.1,2.9]
[1751477189691,56.21222522,2581.5,2581.1,2.9]
[1751477189692,55.82,2581.5,2581.1,2.9]
[1751477189895,53.71837,2581.4,2581.1,2.9]
[1751477190096,52.944,2581.4,2581.1,2.9]
[1751477190296,52.942,2581.3,2581.1,2.9]
[1751477190497,58.11169179,2582.3,2581.2,4.3791]
[1751477190697,16.0848,2582.2,2581.3,7.78831521]
[1751477190896,0.77419,2582.0,2581.3,11.64268521]
[1751477191096,0.77421,2581.9,2581.3,11.64268521]
[1751477191302,40.315,2582.1,2581.3,11.64268521]
[1751477191303,13.39314,2582.1,2581.4,0.77434]
[1751477191498,40.315,2582.0,2581.5,3.6709]
[1751477191706,0.77429,2581.6,2581.5,2.9]
[1751477191903,3.4658,2581.9,2581.5,2.9]
[1751477192203,0.77429,2581.6,2581.5,2.9]
[1751477192400,41.08929,2581.6,2581.5,2.9]
[1751477192596,3.4658,2582.2,2581.5,10.68831521]
[1751477192901,3.06970155,2583.0,2581.8,7.78831521]
[1751477192902,1.9347,2583.0,2581.8,7.78831521]
[1751477193099,0.77398,2582.7,2581.9,7.2248]
[1751477193304,40.315,2582.6,2581.9,10.6848]
[1751477193503,40.315,2582.5,2582.1,0.77413]
[1751477193804,3.4658,2582.9,2582.2,3.4037]
[1751477193999,0.77398,2582.7,2582.2,6.5937]
[1751477194199,0.774,2582.6,2582.3,3.40951001]
[1751477194399,40.309,2582.5,2582.3,3.44581001]
[1751477194600,0.77405,2582.4,2582.3,3.44581001]
[1751477194801,3.357,2582.7,2582.3,3.44581001]
[1751477195005,52.926,2582.6,2582.3,3.44581001]
[1751477195303,52.926,2582.6,2582.4,3.4037]
[1751477195304,40.309,2582.5,2582.4,3.4037]
[1751477195499,0.77405,2582.4,2582.3,0.00581001]
[1751477195696,0.77405,2582.4,2582.3,3.50581001]
[1751477197000,9.18125,2582.4,2582.3,2.10111001]
[1751477197200,4.18125,2582.4,2582.3,2.10111001]
[1751477198308,9.18125,2582.4,2582.3,2.10111001]
[1751477198497,9.18125,2582.4,2582.3,0.30197001]
[1751477198498,12.81065,2582.4,2582.3,0.30197001]
[1751477198904,12.81065,2582.4,2582.3,1e-08]
[1751477199505,65.71765,2582.4,2582.3,1e-08]
[1751477202207,0.77414,2582.1,2582.0,3.39041001]
[1751477202403,1.93544,2582.0,2580.7,3.4519]
[1751477202604,0.77444,2581.2,2580.7,4.02559]
[1751477202804,52.903,2581.1,2580.7,4.02559]
[1751477203008,40.289,2581.2,2581.0,0.77446]
[1751477203206,40.289,2581.2,2581.1,3.5634]
[1751477203410,3.6128,2582.3,2581.1,4.13709]
[1751477203707,40.289,2582.0,2581.3,0.77437]
[1751477203911,0.77422,2581.9,2581.4,7.2262]
[1751477204214,0.77427,2581.7,2581.4,7.79989]
[1751477204510,40.288,2581.6,2581.4,7.79989]
[1751477204903,0.00581001,2581.9,2581.4,7.79989]
[1751477205107,0.00581001,2581.9,2581.6,7.78831521]
[1751477205308,0.00581001,2581.9,2581.7,3.5634]
[1751477205509,0.00581001,2581.9,2581.7,4.13709]
[1751477205709,40.285,2581.8,2581.7,4.13709]
[1751477206510,40.285,2581.8,2581.7,0.57369]
[1751477206710,41.05923,2581.8,2581.7,0.57369]
[1751477207107,0.00581001,2581.9,2581.7,0.57369]
[1751477207610,0.78001001,2581.9,2581.8,3.3578]
[1751477207810,41.06201001,2581.9,2581.8,3.93149]
[1751477208005,0.00581001,2581.9,2581.8,9.70572]
[1751477208308,40.28581001,2581.9,2581.8,3.93149]
[1751477209007,41.06001001,2581.9,2581.8,0.57369]
[1751477209311,40.28581001,2581.9,2581.8,0.57369]
[1751477209710,41.06001001,2581.9,2581.8,0.57369]
[1751477210208,0.00581001,2581.9,2581.8,0.57369]
[1751477210513,0.00581001,2581.9,2581.8,4.04329]
[1751477210709,0.00581001,2581.9,2581.8,4.81752]
[1751477211304,0.00581001,2581.9,2581.8,11.83160521]
[1751477211713,0.00581001,2581.9,2581.8,4.04329]
[1751477212512,0.00581001,2581.9,2581.8,0.57369]
[1751477212720,0.78001001,2581.9,2581.8,0.57369]
[1751477213015,0.00581001,2581.9,2581.8,1.34792]
[1751477213217,0.00581001,2581.9,2581.8,0.57369]
[1751477213413,0.00581001,2581.9,2581.8,1.34792]
[1751477213614,5.79985,2582.8,2582.1,0.77414]
[1751477213811,5.79985,2582.8,2582.1,0.57369]
[1751477213812,0.77407,2582.4,2582.1,0.57369]
[1751477214012,40.269,2582.3,2582.1,0.57369]
[1751477215509,0.77411,2582.2,2582.1,0.57369]
[1751477215714,40.269,2582.3,2582.1,0.57369]
[1751477215918,52.788,2582.2,2582.1,0.57369]
[1751477216119,40.264,2582.2,2582.1,1.34783]
[1751477216916,12.524,2582.3,2582.2,0.77411]
[1751477217116,12.524,2582.3,2582.2,1.3478]
[1751477217117,52.784,2582.3,2582.2,1.3478]
[1751477217516,52.784,2582.3,2582.2,0.57369]
[1751477217715,53.55808,2582.3,2582.2,0.57369]
[1751477217920,52.784,2582.3,2582.2,1.3478]
[1751477218114,12.523,2582.5,2582.2,2.50897]
[1751477218318,12.523,2582.5,2582.4,0.77405]
[1751477218618,52.78,2582.5,2582.4,0.57369]
[1751477219015,53.55402,2582.5,2582.4,0.57369]
[1751477219617,52.78,2582.5,2582.4,0.57369]
[1751477220018,52.78,2582.5,2582.4,1.34774]
[1751477220213,55.774,2582.9,2582.8,0.77393]
[1751477220519,55.774,2582.9,2582.8,0.57369]
[1751477220520,96.027,2582.9,2582.8,0.57369]
[1751477221119,56.5479,2582.9,2582.8,0.57369]
[1751477221313,105.7272,2582.9,2582.8,0.57369]
[1751477221812,104.9533,2582.9,2582.8,0.57369]
[1751477222117,108.02889179,2582.9,2582.8,0.56787999]
[1751477223520,105.7272,2582.9,2582.8,0.56787999]
[1751477223715,1.9351,2582.5,2581.6,1.89933182]
[1751477224015,7.78831521,2582.2,2581.6,1.12505182]
[1751477224221,52.764,2582.1,2581.6,0.00581001]
[1751477224717,1.93501,2582.6,2581.6,0.00581001]
[1751477224718,40.241,2582.6,2582.4,0.77405]
[1751477224917,12.522,2582.7,2582.6,0.77399]
[1751477225322,52.761,2582.7,2582.6,5.77399]
[1751477225523,12.522,2582.7,2582.6,5.77399]
[1751477225719,55.774,2582.9,2582.8,0.77393]
[1751477225920,0.06739425,2583.4,2582.8,5.0]
[1751477226120,40.235,2583.3,2582.8,1.93479]
[1751477226321,40.235,2583.3,2583.1,0.77381]
[1751477226718,12.58839425,2583.4,2583.2,7.78831521]
[1751477226918,12.521,2583.9,2583.2,12.78831521]
[1751477227120,12.521,2584.3,2583.7,7.78831521]
[1751477227421,0.77355,2584.1,2583.8,3.807]
[1751477227626,40.232,2584.0,2583.8,3.807]
[1751477227923,0.7736,2583.9,2583.8,3.807]
[1751477228320,40.232,2584.0,2583.3,3.5627]
[1751477228624,41.00559,2584.0,2583.4,12.36905521]
[1751477228825,0.77361,2583.9,2583.4,11.59531521]
[1751477229022,13.29254,2584.1,2583.8,7.78831521]
[1751477229221,40.221,2584.0,2583.8,7.78831521]
[1751477229618,40.221,2584.0,2583.4,3.807]
[1751477229824,0.77367,2583.7,2583.4,3.807]
[1751477230028,40.99267,2583.7,2583.4,3.807]
[1751477230427,40.99268,2583.7,2583.4,3.807]
[1751477230622,0.77369,2583.6,2583.4,3.807]
[1751477230930,40.219,2583.7,2583.4,3.807]
[1751477231330,0.7737,2583.6,2583.4,3.807]
[1751477232029,40.99268,2583.7,2583.4,3.807]
[1751477232225,40.219,2583.7,2582.9,0.00581001]
[1751477232730,1.93431,2583.5,2582.9,0.00581001]
[1751477232931,59.4895,2583.6,2582.9,0.00581001]
[1751477232932,16.2635,2583.4,2582.9,0.00581001]
[1751477233131,4.52026,2583.4,2582.9,0.00581001]
[1751477233331,52.706,2583.3,2582.9,0.00581001]
[1751477233832,56.3868,2583.3,2582.9,0.00581001]
[1751477234229,0.77387,2583.1,2582.9,0.00581001]
[1751477234428,7.3429,2583.4,2582.9,0.00581001]
[1751477234633,52.702,2583.3,2582.9,0.00581001]
[1751477234830,52.701,2583.2,2583.0,0.77385]
[1751477235228,52.701,2583.2,2582.9,0.77970001]
[1751477235429,52.701,2583.2,2583.0,7.78831521]
[1751477235624,12.499,2583.3,2583.0,7.78831521]
[1751477235829,12.499,2583.3,2583.2,0.77381]
[1751477236029,52.698,2583.3,2583.2,0.77381]
[1751477236733,52.698,2583.3,2583.0,11.44391521]
[1751477236932,52.698,2583.3,2582.9,0.00581001]
[1751477237131,53.47179,2583.3,2582.9,0.77971001]
[1751477237433,3.8307,2583.2,2582.9,0.00581001]
[1751477237633,3.8307,2583.2,2582.9,0.77971001]
[1751477238031,3.8307,2583.2,2582.9,0.77970001]
[1751477238234,3.8307,2583.2,2583.0,0.77387]
[1751477238633,52.698,2583.3,2583.0,0.77387]
[1751477239038,52.698,2583.3,2582.9,0.77970001]
[1751477239337,52.698,2583.3,2583.0,0.77387]
[1751477239528,52.698,2583.3,2582.9,0.00581001]
[1751477239733,3.8307,2583.5,2582.9,7.79412522]
[1751477239936,52.685,2583.4,2583.3,0.77378]
[1751477240133,52.685,2583.4,2582.9,13.53085522]
[1751477240337,52.685,2583.4,2583.3,0.77378]
[1751477240534,52.682,2583.4,2583.2,0.77379]
[1751477240839,52.682,2583.4,2583.3,0.77378]
[1751477241732,12.498,2583.4,2583.3,0.77378]
[1751477241933,12.498,2583.4,2582.9,3.80781001]
[1751477241934,52.68,2583.4,2582.9,3.80781001]
[1751477242139,52.68,2583.4,2583.2,0.77381]
[1751477242340,52.68,2583.4,2583.1,0.77382]
[1751477242839,56.4083,2583.4,2583.1,0.77382]
[1751477243436,56.4083,2583.4,2583.1,0.77384]
[1751477243637,56.4083,2583.4,2582.9,3.80781001]
[1751477244142,57.18206,2583.4,2582.9,0.77970001]
[1751477244334,0.77379,2583.3,2582.9,0.00581001]
[1751477244543,43.9003,2583.2,2582.9,0.00581001]
[1751477244736,55.743,2583.6,2583.3,0.77376]
[1751477244941,52.668,2583.5,2583.3,0.77377]
[1751477245134,16.2263,2583.5,2583.4,0.77375]
[1751477245335,68.241,2583.6,2583.5,0.77372]
[1751477245538,12.498,2584.1,2583.4,11.97750687]
[1751477245841,40.166,2584.2,2584.1,0.77353]
[1751477246438,40.166,2584.2,2583.7,6.97750687]
[1751477246746,40.166,2584.2,2583.5,0.7737]
[1751477247040,40.166,2584.2,2583.4,0.77374]
[1751477247041,0.77363,2583.9,2583.4,0.77374]
[1751477247240,56.7186,2583.8,2583.4,0.77374]
[1751477247440,40.157,2583.7,2583.4,0.77374]
[1751477247643,7.7441,2584.1,2583.5,6.97750687]
[1751477247842,52.651,2584.0,2583.8,0.77362]
[1751477248551,0.06736425,2584.3,2583.8,6.97750687]
[1751477248845,52.648,2584.2,2583.5,14.91480687]
[1751477249045,0.77358,2584.0,2583.5,7.9373]
[1751477249245,44.1311,2583.9,2583.5,4.75101]
[1751477249639,44.1311,2583.9,2583.5,3.9773]
[1751477249845,44.90471,2583.9,2583.4,7.75123687]
[1751477250045,44.1311,2583.9,2583.4,7.75123687]
[1751477250245,44.1311,2583.9,2583.4,0.77373]
[1751477250747,12.496,2584.0,2583.9,0.77358]
[1751477251053,52.638,2584.0,2583.9,0.77358]
[1751477251846,12.496,2584.0,2583.9,0.77358]
[1751477252144,12.496,2584.4,2584.3,0.77348]
[1751477252347,52.633,2584.4,2584.2,6.97750687]
[1751477252551,52.633,2584.4,2584.3,0.77348]
[1751477252745,12.496,2584.4,2584.3,0.77348]
[1751477252952,52.631,2584.4,2584.2,0.7735]
[1751477253148,52.631,2584.4,2583.9,11.8712]
[1751477253348,53.40447,2584.4,2584.0,0.77355]
[1751477253550,40.132,2584.3,2584.0,0.77355]
[1751477253749,40.129,2584.7,2584.4,0.77344]
[1751477253945,40.129,2584.7,2584.4,0.77343]
[1751477254150,40.129,2584.7,2584.4,0.77344]
[1751477254355,12.495,2585.0,2584.6,6.97750687]
[1751477254552,40.125,2584.9,2584.8,0.77332]
[1751477254947,40.125,2584.9,2584.3,5.95117001]
[1751477254948,40.124,2584.9,2584.4,6.97750687]
[1751477255144,40.124,2584.9,2584.4,10.98920687]
[1751477255346,40.124,2584.9,2584.4,5.94533]
[1751477255549,40.124,2584.9,2584.8,0.77334]
[1751477256050,12.495,2585.0,2584.9,0.77331]
[1751477256258,52.614,2585.0,2584.9,0.77331]
[1751477256449,12.495,2585.0,2584.9,7.75081687]
[1751477256654,55.724,2585.4,2585.3,0.77319]
[1751477256855,95.836,2585.4,2585.3,0.77319]
[1751477257150,67.76884153,2585.4,2584.3,1.121686]
[1751477257355,67.76884153,2585.4,2584.4,0.77344]
[1751477257356,0.77335,2584.8,2584.4,0.77344]
[1751477257555,40.88337,2584.7,2584.4,3.8304]
[1751477257851,40.11,2584.7,2584.3,0.00581001]
[1751477258057,0.77345,2584.5,2584.3,0.00581001]
[1751477258257,40.108,2584.4,2584.3,0.00581001]
[1751477258757,40.106,2584.4,2584.3,0.77928001]
[1751477258952,52.594,2584.6,2584.3,5.00581001]
[1751477259155,40.102,2584.6,2584.5,7.75093687]
[1751477260553,40.1,2584.8,2584.5,6.97750687]
[1751477260753,0.06733466,2585.4,2585.3,0.77319]